bitfinex/quotes_ETHUSD_20250219
["timestamp","ask_amount","ask_price","bid_price","bid_amount"]
[1740001799803,0.6442,2725.7,2725.2,3.66939]
[1740001800144,3.0,2725.8,2725.3,0.7922]
[1740001800344,6.66866,2725.8,2725.3,0.7922]
[1740001801133,3.0,2725.8,2725.3,0.7922]
[1740001801300,0.6442,2725.9,2725.5,3.66901]
[1740001801505,3.0,2725.9,2725.4,3.66911]
[1740001801705,3.0,2725.9,2725.4,7.33822]
[1740001801908,3.0,2725.9,2725.4,3.66911]
[1740001802370,3.66862,2725.9,2725.3,5.0059983]
[1740001802576,4.31287,2725.8,2725.3,7.33862]
[1740001802745,4.31287,2725.8,2725.3,3.66931]
[1740001802948,4.31287,2725.8,2725.3,7.33849]
[1740001804278,0.6442,2725.8,2725.3,3.66924]
[1740001804579,0.6442,2725.8,2725.4,3.66912]
[1740001804774,0.6442,2725.8,2725.4,4.402955]
[1740001804984,4.31285,2725.8,2725.3,3.66923]
[1740001805777,0.6442,2725.8,2725.4,3.66917]
[1740001805996,3.7914,2726.0,2725.5,7.33793]
[1740001806136,0.1472,2726.0,2725.6,0.7645]
[1740001806335,0.1472,2726.0,2725.6,4.43339]
[1740001807083,3.1472,2726.0,2725.6,4.43339]
[1740001807916,3.81558,2726.0,2725.6,4.43339]
[1740001809014,0.1472,2726.0,2725.6,4.43339]
[1740001809840,0.1472,2726.0,2725.7,3.66876]
[1740001810165,0.1472,2726.0,2725.6,4.43339]
[1740001810366,0.1472,2726.0,2725.6,4.43334]
[1740001810567,0.1472,2726.0,2725.8,3.66856]
[1740001810968,0.1472,2726.0,2725.6,4.876644]
[1740001811196,0.1472,2726.0,2725.6,4.43331]
[1740001811516,3.1472,2726.0,2725.6,4.43331]
[1740001811881,0.1472,2726.0,2725.6,8.10215]
[1740001812298,0.1472,2726.0,2725.6,4.43331]
[1740001812595,3.1472,2726.0,2725.6,4.43331]
[1740001813108,3.81561,2726.0,2725.6,4.43331]
[1740001813406,3.81561,2726.0,2725.5,3.66903]
[1740001813636,4.98341,2726.0,2725.5,3.66903]
[1740001814197,0.6442,2725.9,2725.4,3.66911]
[1740001814438,0.6442,2725.7,2725.1,4.652653]
[1740001814637,4.31332,2725.5,2724.9,3.66979]
[1740001814809,4.31332,2725.5,2724.9,4.112649]
[1740001815198,3.66923,2725.4,2724.9,4.112649]
[1740001816229,4.31332,2725.5,2724.9,4.112649]
[1740001816826,3.66919,2725.4,2724.9,4.112649]
[1740001817842,0.6442,2725.5,2724.9,4.112649]
[1740001818014,4.31326,2725.5,2725.0,3.66969]
[1740001818344,7.33845,2725.4,2724.8,7.53666967]
[1740001818545,7.33845,2725.4,2724.8,6.77786967]
[1740001818716,0.6442,2725.2,2724.7,3.67012]
[1740001819118,0.6442,2725.2,2724.7,7.34017]
[1740001819444,0.6442,2725.2,2724.7,3.67005]
[1740001819830,3.66967,2725.1,2724.6,0.7764]
[1740001820003,4.31366,2725.2,2724.6,5.20199597]
[1740001820940,3.6696,2725.1,2724.6,1.53186597]
[1740001821241,0.6442,2725.0,2724.5,3.10794967]
[1740001821403,0.6442,2725.0,2724.6,3.67017]
[1740001822051,0.6442,2725.0,2724.7,3.67005]
[1740001822535,0.6442,2725.0,2724.6,4.49369]
[1740001822848,0.6442,2725.0,2724.6,3.67019]
[1740001823351,0.6442,2725.0,2724.7,3.67009]
[1740001824047,0.6442,2725.0,2724.5,6.77833967]
[1740001824415,3.66986,2724.9,2724.5,3.10794967]
[1740001824620,3.66986,2724.9,2724.3,7.34108]
[1740001824822,3.66986,2724.9,2724.3,8.48096755]
[1740001825035,3.66986,2724.9,2724.3,4.81042755]
[1740001825547,4.1942,2724.8,2724.2,3.8221258]
[1740001825717,3.67015,2724.7,2724.2,0.1513458]
[1740001826042,0.6442,2724.6,2724.2,0.1513458]
[1740001826453,0.6442,2724.6,2724.2,3.8220658]
[1740001827351,4.31448,2724.6,2724.2,0.1513458]
[1740001828553,4.31486,2724.3,2724.2,0.1513458]
[1740001828914,7.31486,2724.3,2724.2,0.1513458]
[1740001829214,3.6442,2724.3,2724.2,0.1513458]
[1740001830324,7.31486,2724.3,2724.2,0.1513458]
[1740001832349,3.6442,2724.3,2724.2,0.1513458]
[1740001832560,3.71827618,2724.3,2724.2,0.1513458]
[1740001832867,14.56006329,2724.3,2724.2,0.1513458]
[1740001833234,0.6442,2723.4,2723.1,0.005]
[1740001833650,0.06747766,2723.3,2723.1,0.005]
[1740001834852,0.6442,2723.2,2723.1,0.005]
[1740001835162,0.71060535,2723.2,2723.1,0.005]
[1740001835324,0.06640535,2723.2,2723.1,0.005]
[1740001835521,0.91941466,2723.4,2723.1,0.005]
[1740001835763,0.6442,2723.4,2723.1,0.005]
[1740001835960,0.0662387,2723.3,2723.2,3.67207]
[1740001836173,6.0042,2723.7,2723.2,3.67207]
[1740001836380,9.03088,2724.2,2723.5,3.67173]
[1740001836540,4.31532,2724.0,2723.4,0.7838]
[1740001836872,4.31532,2724.0,2723.4,4.45566]
[1740001837178,0.06397006,2723.7,2723.4,4.45566]
[1740001837392,3.0,2723.9,2723.4,4.45566]
[1740001837979,0.0641296,2723.7,2723.4,4.45566]
[1740001838146,3.0,2723.9,2723.4,4.45566]
[1740001838343,0.06410349,2723.6,2723.4,4.45566]
[1740001838561,6.67121,2723.9,2723.4,4.45561]
[1740001838771,0.06407737,2723.5,2723.4,4.45561]
[1740001839084,3.67175,2723.5,2723.1,0.005]
[1740001839235,0.431595,2723.4,2723.1,0.005]
[1740001839435,3.73591737,2723.5,2723.1,0.005]
[1740001839671,0.06393871,2723.3,2723.1,0.005]
[1740001839835,3.67189,2723.4,2723.1,0.005]
[1740001840036,0.06391258,2723.2,2723.1,0.005]
[1740001840585,3.67189,2723.4,2723.1,0.005]
[1740001840738,0.0638727,2723.2,2723.1,0.005]
[1740001840939,3.0,2723.5,2723.1,0.005]
[1740001841149,0.06392494,2723.4,2723.1,3.67727]
[1740001841355,0.06392494,2723.4,2723.3,4.47311]
[1740001841550,0.9102,2723.9,2723.3,4.47311]
[1740001841835,0.06377873,2723.4,2723.2,3.67208]
[1740001842039,3.67134,2723.8,2723.3,3.67201]
[1740001843092,3.9102,2723.9,2723.3,3.67201]
[1740001843239,0.06388368,2723.7,2723.4,7.34366]
[1740001843446,0.06390979,2723.8,2723.3,0.816269]
[1740001843786,0.06401661,2723.7,2723.5,4.46921]
[1740001844082,3.6442,2724.1,2723.6,3.67161]
[1740001844380,3.6442,2724.1,2723.5,0.7976]
[1740001844578,0.6442,2724.1,2723.6,3.67149]
[1740001844956,0.266,2724.2,2723.7,3.67147]
[1740001845154,3.93683,2724.2,2723.5,0.7976]
[1740001845360,3.93683,2724.2,2723.6,3.67154]
[1740001845886,3.671,2724.1,2723.6,3.67154]
[1740001846990,0.0617632,2724.0,2723.6,3.67154]
[1740001848397,0.0617632,2724.0,2723.5,4.46933]
[1740001849432,3.67114,2724.0,2723.5,4.46933]
[1740001849590,0.06173709,2723.9,2723.5,4.46933]
[1740001851883,4.3156,2723.8,2723.2,6.1829]
[1740001852089,3.67147,2723.7,2723.2,6.1829]
[1740001852287,3.73342073,2723.7,2723.2,6.1829]
[1740001853202,3.73342073,2723.7,2723.2,5.37]
[1740001853404,3.73342073,2723.7,2723.2,9.0421]
[1740001853605,3.73342073,2723.7,2723.2,5.37]
[1740001853916,7.40498073,2723.7,2723.2,5.37]
[1740001854101,3.73342073,2723.7,2723.2,5.37]
[1740001854301,7.40498073,2723.7,2723.1,3.67716]
[1740001854498,0.90419757,2723.7,2723.1,0.005]
[1740001854727,3.6717,2723.6,2723.1,3.67728]
[1740001855141,0.06180544,2723.5,2723.1,3.67728]
[1740001855933,0.06180544,2723.5,2723.1,0.005]
[1740001856132,3.73362544,2723.5,2723.1,0.005]
[1740001856359,0.6442,2723.4,2723.1,0.005]
[1740001856558,0.06151725,2723.3,2723.1,0.005]
[1740001857429,0.06151725,2723.3,2723.2,3.67215]
[1740001857751,0.06145742,2723.3,2723.2,3.67215]
[1740001857957,0.6442,2723.6,2723.2,3.67215]
[1740001858360,0.06139002,2723.5,2723.2,3.67215]
[1740001859061,7.47085502,2723.5,2723.1,0.005]
[1740001859858,0.79910502,2723.5,2723.1,3.67728]
[1740001860228,0.79910502,2723.5,2723.2,3.67213]
[1740001860431,0.06139002,2723.5,2723.2,3.67213]
[1740001861036,0.06139002,2723.5,2723.1,0.005]
[1740001861861,0.06139002,2723.5,2723.1,3.67725]
[1740001862070,0.06139002,2723.5,2723.2,3.67213]
[1740001862581,0.06139002,2723.5,2723.1,0.005]
[1740001862745,3.73315002,2723.5,2723.1,0.005]
[1740001862951,4.83803402,2723.5,2723.1,0.005]
[1740001863789,0.6442,2723.4,2723.1,0.005]
[1740001863952,4.37753032,2723.4,2723.1,0.005]
[1740001864353,0.70563032,2723.4,2723.1,0.005]
[1740001865066,4.37755032,2723.4,2723.1,0.005]
[1740001866579,3.67205,2723.3,2723.1,0.005]
[1740001866787,4.56628634,2723.3,2723.1,0.005]
[1740001870119,0.89423634,2723.3,2723.1,0.005]
[1740001870338,0.06133774,2723.3,2723.1,0.005]
[1740001871323,0.06133774,2723.3,2723.1,3.67724]
[1740001871623,0.06133774,2723.3,2723.1,0.7565]
[1740001871805,0.27938567,2723.5,2723.1,0.7565]
[1740001871980,0.06106162,2723.2,2723.1,0.7565]
[1740001872181,6.67194,2723.4,2723.1,0.7565]
[1740001872381,0.06106162,2723.2,2723.1,0.7565]
[1740001872594,0.6442,2723.6,2723.2,3.67206]
[1740001873106,0.6442,2723.6,2723.3,3.67197]
[1740001873309,0.6442,2723.6,2723.2,3.67213]
[1740001873713,3.6442,2723.6,2723.2,3.67213]
[1740001875235,7.31583,2723.6,2723.2,3.67213]
[1740001875534,0.06104692,2723.5,2723.2,3.67213]
[1740001875897,7.61931259,2723.7,2723.2,3.67213]
[1740001876098,0.06110719,2723.4,2723.2,3.67213]
[1740001876405,3.6442,2723.8,2723.4,3.6718]
[1740001878033,3.6442,2723.8,2723.3,3.6719]
[1740001878034,4.31555,2723.8,2723.3,3.6719]
[1740001878233,4.31555,2723.8,2723.4,3.67186]
[1740001878952,0.6442,2723.8,2723.4,3.67186]
[1740001879347,0.6442,2723.8,2723.4,3.6718]
[1740001879939,0.6442,2724.1,2723.2,3.67215]
[1740001880140,0.266,2724.0,2723.6,3.67149]
[1740001880370,0.6442,2724.1,2723.7,3.67143]
[1740001880569,0.6442,2724.1,2723.7,8.11156]
[1740001880750,0.6442,2724.1,2723.7,4.44013]
[1740001880955,4.31513,2724.1,2723.4,4.44058]
[1740001881154,4.31513,2724.1,2723.5,3.67173]
[1740001881561,3.0,2724.0,2723.3,3.67191]
[1740001881763,0.6442,2723.8,2723.2,9.84464]
[1740001881972,4.31561,2723.8,2723.2,9.84464]
[1740001882274,3.6717,2723.6,2723.1,0.005]
[1740001882474,0.36717,2723.5,2723.1,0.005]
[1740001882688,3.6717,2723.6,2723.1,0.005]
[1740001882889,4.31602,2723.5,2723.1,0.005]
[1740001883576,3.67188,2723.4,2723.1,0.005]
[1740001883776,3.67203,2723.3,2723.1,0.005]
[1740001884114,0.05905015,2723.2,2723.1,0.005]
[1740001885195,0.05891059,2723.2,2723.1,0.005]
[1740001885396,3.67209,2723.3,2723.1,0.005]
[1740001885698,0.05891059,2723.2,2723.1,0.005]
[1740001886375,4.470907,2723.3,2723.1,0.005]
[1740001886573,0.05681559,2723.2,2723.1,0.005]
[1740001886903,3.0,2723.4,2723.1,0.005]
[1740001887060,0.05664273,2723.2,2723.1,0.005]
[1740001887255,3.6719,2723.4,2723.1,0.005]
[1740001887485,0.05656811,2723.2,2723.1,0.005]
[1740001887691,3.6719,2723.4,2723.1,0.005]
[1740001887958,4.77068,2723.4,2723.1,0.005]
[1740001888304,0.05659423,2723.3,2723.1,0.005]
[1740001889420,4.31635,2723.2,2723.1,0.005]
[1740001889586,10.48093423,2723.2,2723.1,0.005]
[1740001890124,16.85310927,2723.2,2723.1,0.005]
[1740001890420,18.25791743,2723.2,2723.1,0.005]
[1740001890577,18.65205613,2723.2,2723.1,0.005]
[1740001891215,18.25791743,2723.2,2723.1,0.005]
[1740001892115,18.98855572,2723.2,2723.1,0.005]
[1740001893367,4.31749,2722.4,2721.7,9.0441]
[1740001893551,4.31749,2722.4,2721.8,3.674]
[1740001893750,0.05505456,2722.3,2721.8,3.674]
[1740001896485,0.05505456,2722.3,2721.7,9.04408]
[1740001896621,0.05505456,2722.3,2721.8,3.67399]
[1740001896822,0.05505456,2722.3,2721.7,9.04408]
[1740001897025,0.05505456,2722.3,2721.7,11.10321554]
[1740001897332,0.05505456,2722.3,2721.8,3.67394]
[1740001897536,0.05505456,2722.3,2721.8,3.67403]
[1740001898126,3.72848456,2722.3,2721.7,11.10322554]
[1740001898755,3.72848456,2722.3,2721.7,5.73322554]
[1740001899120,3.72848456,2722.3,2721.8,3.67402]
[1740001901365,0.05505456,2722.3,2721.8,3.67402]
[1740001901569,0.05505456,2722.3,2721.8,3.67403]
[1740001902454,0.05505456,2722.3,2721.9,0.7928]
[1740001902656,0.05505456,2722.3,2722.2,3.67349]
[1740001902863,0.6442,2722.7,2722.3,3.67335]
[1740001903352,0.6442,2722.7,2722.3,3.6733]
[1740001903690,0.6442,2722.7,2721.9,6.1628]
[1740001903882,0.266,2722.9,2722.4,3.6732]
[1740001904028,0.266,2722.9,2722.4,4.4536]
[1740001904228,3.266,2722.9,2722.4,4.4536]
[1740001904528,6.93864,2722.9,2722.4,0.7804]
[1740001905228,3.67276,2722.8,2722.4,0.7804]
[1740001905450,3.67276,2722.8,2722.2,3.67343]
[1740001905451,4.31705,2722.7,2722.2,3.67343]
[1740001905872,0.05127318,2722.6,2722.2,3.67343]
[1740001906754,0.05127318,2722.6,2722.1,0.7564]
[1740001906755,3.72432318,2722.6,2722.1,0.7564]
[1740001906936,3.67323,2722.4,2721.9,9.80025]
[1740001907135,3.0,2722.5,2722.0,3.67369]
[1740001907376,3.0,2722.5,2722.1,3.67356]
[1740001907532,3.0,2722.5,2722.0,3.67369]
[1740001907874,3.05127318,2722.6,2722.1,3.67363]
[1740001908236,6.72426318,2722.6,2722.1,3.67363]
[1740001908573,3.67328,2722.4,2721.9,4.43027]
[1740001908930,4.31757,2722.3,2721.8,3.67402]
[1740001909467,0.0510252,2722.2,2721.8,3.67402]
[1740001909635,4.31757,2722.3,2721.8,3.67402]
[1740001909838,0.05099906,2722.1,2721.8,3.67402]
[1740001910032,7.99104,2722.3,2721.7,9.04415]
[1740001910268,0.05096183,2722.0,2721.7,5.37]
[1740001910446,0.799104,2722.2,2721.7,9.04417]
[1740001910650,0.05084254,2721.9,2721.7,9.04417]
[1740001910847,4.31757,2722.3,2721.7,9.04417]
[1740001911166,0.05081639,2721.8,2721.7,9.04417]
[1740001911370,4.31757,2722.3,2721.8,3.674]
[1740001911579,5.471646,2722.3,2721.8,3.674]
[1740001911783,4.827446,2722.3,2721.8,3.674]
[1740001911987,4.827446,2722.3,2721.4,0.1513458]
[1740001911988,0.55,2721.8,2721.4,0.1513458]
[1740001912189,0.6442,2721.7,2721.4,0.1513458]
[1740001912794,3.0,2721.5,2721.4,0.1513458]
[1740001913100,7.51196109,2721.5,2721.4,0.1513458]
[1740001913254,8.70616109,2721.5,2721.4,0.1513458]
[1740001913759,17.17411076,2721.5,2721.4,5.8e-06]
[1740001913958,17.17411076,2721.5,2720.1,3.67622]
[1740001913959,0.6442,2721.3,2720.0,6.1429]
[1740001914167,0.698887,2721.2,2720.5,3.67571]
[1740001914408,0.04990082,2721.2,2720.5,0.7729]
[1740001914706,0.31690082,2721.2,2720.8,3.67538]
[1740001914908,0.04990082,2721.2,2720.5,0.7729]
[1740001915208,0.04990082,2721.2,2721.1,4.44788]
[1740001915500,0.6442,2721.6,2721.1,4.44788]
[1740001915857,0.267,2721.8,2721.4,3.67456]
[1740001916172,0.267,2721.8,2721.2,3.67472]
[1740001916704,3.04779816,2721.7,2721.1,4.44776]
[1740001917277,6.72203816,2721.7,2721.1,4.44776]
[1740001917476,6.72203816,2721.7,2721.1,0.7729]
[1740001917671,0.6442,2721.1,2720.4,9.04584]
[1740001917886,3.0,2720.8,2720.4,5.37]
[1740001918092,6.67539,2720.8,2720.2,3.67612]
[1740001918406,3.0,2720.6,2720.1,6.1582]
[1740001918909,0.04744805,2720.5,2720.1,9.83451]
[1740001919769,0.04744805,2720.5,2720.1,12.139042]
[1740001920661,0.04744805,2720.5,2720.1,8.462732]
[1740001920905,0.04744805,2720.5,2720.1,12.138982]
[1740001921080,0.04744805,2720.5,2720.1,8.462732]
[1740001922612,0.04744805,2720.5,2720.0,4.29062]
[1740001922768,0.04744805,2720.5,2720.0,3.67633]
[1740001922967,3.04744805,2720.5,2720.0,3.67633]
[1740001924205,3.04744805,2720.5,2720.0,3.67645]
[1740001924367,3.04744805,2720.5,2720.1,3.67623]
[1740001924769,0.04744805,2720.5,2720.1,3.67627]
[1740001924981,0.04744805,2720.5,2720.0,3.67639]
[1740001925413,0.04744805,2720.5,2720.0,7.35277]
[1740001925594,0.04744805,2720.5,2720.0,3.67638]
[1740001925793,4.46004986,2720.5,2719.8,4.4649]
[1740001925983,4.46004986,2720.5,2719.7,5.37]
[1740001925984,3.67612,2720.3,2719.7,5.37]
[1740001926171,3.0,2720.2,2719.7,5.37]
[1740001926507,0.04682724,2720.2,2719.7,5.37]
[1740001926722,3.72302724,2720.2,2719.7,5.37]
[1740001927277,3.0,2720.1,2719.7,5.37]
[1740001927481,0.6442,2720.0,2719.5,5.37]
[1740001927679,3.6767,2719.9,2719.3,3.67731]
[1740001927913,3.72340798,2719.9,2719.3,3.67731]
[1740001928119,3.6442,2719.8,2719.2,3.67753]
[1740001928320,0.7367608,2719.7,2719.2,3.67753]
[1740001928505,0.78200758,2719.7,2719.0,5.37]
[1740001928704,0.78200758,2719.7,2719.0,9.04775]
[1740001928705,3.0,2719.6,2719.0,9.04775]
[1740001928904,3.0,2719.6,2719.1,3.67766]
[1740001929093,0.0451944,2719.5,2719.4,4.49698]
[1740001929292,0.6442,2720.3,2719.4,4.49698]
[1740001929521,0.6442,2720.3,2719.8,3.67667]
[1740001929724,0.6442,2720.3,2719.8,7.35333]
[1740001929929,0.6442,2720.3,2720.2,3.6762]
[1740001930084,0.6442,2720.6,2720.0,3.67647]
[1740001930511,0.6442,2720.6,2720.0,3.67639]
[1740001930710,1.103072,2720.6,2719.9,0.7706]
[1740001930926,4.103072,2720.6,2719.9,4.44713]
[1740001931528,0.0405189,2720.5,2719.9,4.44713]
[1740001932633,0.0405189,2720.5,2720.1,3.67625]
[1740001933187,0.0405189,2720.5,2719.9,0.7706]
[1740001933188,0.0405189,2720.5,2720.4,3.67593]
[1740001933384,0.0405189,2720.5,2720.4,4.411121]
[1740001933626,0.269,2721.1,2720.5,3.67575]
[1740001933828,0.03930362,2721.0,2720.5,3.67575]
[1740001933987,0.03930362,2721.0,2720.4,5.37]
[1740001934192,0.39832936,2720.9,2720.4,5.37]
[1740001934387,0.03925129,2720.8,2720.4,5.37]
[1740001935410,6.67519,2721.0,2720.4,5.37]
[1740001935590,0.03949087,2720.9,2720.4,5.37]
[1740001936130,0.03949087,2720.9,2720.4,9.04591]
[1740001936728,0.03949087,2720.9,2720.5,3.67579]
[1740001937528,0.03949087,2720.9,2720.5,7.3515]
[1740001937684,0.03949087,2720.9,2720.5,3.67571]
[1740001937890,0.03949087,2720.9,2720.6,3.67565]
[1740001938094,4.31914,2721.2,2720.5,3.67571]
[1740001938437,3.03954319,2721.1,2720.5,3.67571]
[1740001938603,0.03954319,2721.1,2720.6,3.67559]
[1740001938944,0.03954319,2721.1,2720.7,3.67544]
[1740001939439,3.71453319,2721.1,2720.5,3.67578]
[1740001939600,3.71453319,2721.1,2720.4,9.83602]
[1740001939941,4.51790351,2721.1,2720.4,13.51185]
[1740001940140,4.51790351,2721.1,2720.4,9.83593]
[1740001940297,3.0,2720.9,2720.4,9.83593]
[1740001940498,0.03964473,2720.8,2720.4,9.83593]
[1740001941472,0.03964473,2720.8,2720.4,6.1601]
[1740001941605,6.67512,2721.0,2720.4,6.1601]
[1740001941811,0.03967089,2720.9,2720.4,9.83601]
[1740001942708,0.6442,2720.8,2720.4,5.37]
[1740001943055,0.03961856,2720.7,2720.4,9.04591]
[1740001943236,3.0,2721.0,2720.4,9.04591]
[1740001943549,0.03912174,2720.9,2720.4,9.04591]
[1740001943748,0.03912174,2720.9,2720.4,5.37]
[1740001943938,0.03912174,2720.9,2720.8,3.67538]
[1740001944138,0.6442,2721.2,2720.8,3.67538]
[1740001944339,0.03807719,2720.9,2720.8,3.67538]
[1740001944537,0.6442,2721.2,2720.8,3.67538]
[1740001944733,0.03810386,2720.9,2720.8,3.67532]
[1740001944937,0.6442,2721.2,2720.8,3.67532]
[1740001945143,0.03810386,2720.9,2720.8,3.67532]
[1740001945394,3.67455,2721.5,2721.0,3.67511]
[1740001945395,0.6442,2721.5,2721.0,3.67511]
[1740001945653,0.6442,2721.7,2721.4,3.67456]
[1740001945957,0.269,2721.8,2721.0,9.85509]
[1740001946108,3.0,2721.7,2721.0,9.85509]
[1740001946315,6.67425,2721.7,2721.0,11.22490217]
[1740001946516,4.35715377,2721.6,2721.0,6.1801]
[1740001946727,0.68274377,2721.6,2721.0,9.85511]
[1740001946929,0.68274377,2721.6,2721.0,13.53012]
[1740001947258,0.68274377,2721.6,2721.0,9.85511]
[1740001947461,0.68274377,2721.6,2721.0,13.53016]
[1740001948140,4.35705377,2721.6,2721.0,13.53016]
[1740001948339,0.03854377,2721.6,2721.2,3.67484]
[1740001948526,0.03854377,2721.6,2721.2,7.3496]
[1740001949452,0.03854377,2721.6,2721.2,3.67476]
[1740001949654,0.03854377,2721.6,2721.2,7.34954]
[1740001949817,0.03854377,2721.6,2721.2,3.67476]
[1740001950024,0.03854377,2721.6,2721.0,10.4715642]
[1740001950365,0.03854377,2721.6,2721.0,9.04504]
[1740001950366,0.6442,2721.5,2721.0,9.04504]
[1740001950727,3.0389247,2721.4,2721.0,9.04504]
[1740001951421,0.0389247,2721.4,2721.0,9.04502]
[1740001951635,0.0389247,2721.4,2721.1,3.67489]
[1740001952664,0.0389247,2721.4,2721.0,5.37]
[1740001952911,0.0389247,2721.4,2721.0,9.04503]
[1740001953072,0.0389247,2721.4,2721.1,3.67496]
[1740001953565,0.0389247,2721.4,2721.1,7.34985]
[1740001953774,0.0389247,2721.4,2721.1,4.946875]
[1740001953984,0.0389247,2721.4,2721.2,3.67476]
[1740001954154,0.6442,2721.7,2721.2,3.67476]
[1740001954474,0.9122,2722.0,2721.6,3.6743]
[1740001954640,0.03868634,2721.9,2721.8,3.67392]
[1740001954841,0.6442,2722.4,2721.8,2.086207]
[1740001955160,3.03737247,2722.3,2721.8,9.04403]
[1740001955352,0.03737247,2722.3,2721.8,9.04403]
[1740001955543,0.03737247,2722.3,2721.8,9.04396]
[1740001956076,3.71075247,2722.3,2721.8,9.04396]
[1740001956428,0.03737247,2722.3,2721.9,3.67388]
[1740001956876,0.03737247,2722.3,2721.9,3.6738]
[1740001957084,0.03737247,2722.3,2721.9,4.57825]
[1740001957248,0.03737247,2722.3,2721.9,0.90438]
[1740001957572,0.03737247,2722.3,2722.0,3.67375]
[1740001958277,0.03737247,2722.3,2722.0,9.04375]
[1740001959541,0.03737247,2722.3,2722.0,12.71744]
[1740001959749,0.03737247,2722.3,2722.1,3.67359]
[1740001960272,7.31723,2722.6,2722.0,10.06472026]
[1740001960495,3.71133087,2722.5,2722.0,5.37]
[1740001961211,3.71133087,2722.5,2722.0,9.04369]
[1740001961581,0.03818087,2722.5,2722.1,3.67362]
[1740001961777,0.03818087,2722.5,2722.1,12.7171]
[1740001961976,0.03818087,2722.5,2722.3,7.34662]
[1740001962181,0.03818087,2722.5,2722.3,1.348842]
[1740001962404,3.67282,2722.7,2722.1,9.81542]
[1740001962579,0.03869551,2722.4,2722.2,3.67348]
[1740001962779,3.67282,2722.7,2722.2,3.67348]
[1740001962975,0.03866938,2722.3,2722.2,3.67348]
[1740001963220,3.67282,2722.7,2722.2,5.022383]
[1740001963422,0.03866938,2722.3,2722.2,3.67348]
[1740001963595,3.67282,2722.7,2722.2,3.67348]
[1740001963797,0.03846088,2722.3,2722.2,3.67348]
[1740001964012,3.67282,2722.7,2722.2,3.67348]
[1740001964205,0.03846088,2722.3,2722.2,3.67348]
[1740001964528,0.03846088,2722.3,2722.2,5.022383]
[1740001964818,3.67282,2722.7,2722.2,5.022383]
[1740001964980,0.03846088,2722.3,2722.2,3.67348]
[1740001965181,3.67282,2722.7,2722.2,3.67348]
[1740001965521,0.6442,2722.4,2722.1,5.37]
[1740001965687,0.03846088,2722.3,2722.1,9.0436]
[1740001966220,0.03846088,2722.3,2722.1,5.37]
[1740001966377,0.03846088,2722.3,2722.2,0.904375]
[1740001966884,3.6442,2722.6,2722.2,4.577825]
[1740001967086,0.03851313,2722.5,2722.2,9.947825]
[1740001967401,0.03851313,2722.5,2722.2,6.274375]
[1740001967833,0.03851313,2722.5,2722.2,9.947835]
[1740001968086,0.03851313,2722.5,2722.3,3.67335]
[1740001968370,0.03851313,2722.5,2722.3,4.44515]
[1740001968746,7.31689,2722.8,2722.3,5.8844555]
[1740001968747,0.6442,2722.8,2722.3,5.8844555]
[1740001969057,3.0,2722.9,2722.3,0.7718]
[1740001969058,0.03856538,2722.7,2722.3,0.7718]
[1740001969371,3.874,2724.1,2722.8,3.67267]
[1740001969372,0.6442,2723.1,2722.8,3.67267]
[1740001969722,0.6442,2723.1,2722.7,5.37]
[1740001970249,3.03915398,2723.0,2722.7,5.37]
[1740001973292,0.03915398,2723.0,2722.7,5.37]
[1740001975616,3.71159398,2723.0,2722.7,5.37]
[1740001975761,4.44715838,2723.0,2722.7,5.37]
[1740001975963,3.67268,2722.8,2722.7,5.37]
[1740001976269,6.71178567,2722.8,2722.7,5.37]
[1740001977698,7.35598567,2722.8,2722.7,5.37]
[1740001978004,8.53240468,2722.8,2722.7,5.37]
[1740001979089,8.53240468,2722.8,2722.4,5.37]
[1740001979502,3.0,2722.6,2722.4,5.37]
[1740001979808,0.03898302,2722.5,2722.4,5.37]
[1740001981124,6.71207302,2722.5,2722.4,5.37]
[1740001981296,8.02748032,2722.5,2722.4,5.37]
[1740001982468,3.67383,2722.0,2721.8,5.37]
[1740001982672,3.6830398,2721.9,2721.6,5.37]
[1740001982986,6.67424,2721.7,2721.4,5.37]
[1740001983312,0.03858417,2721.6,2721.4,5.37]
[1740001983673,7.31864,2721.5,2721.4,5.37]
[1740001983873,7.35720541,2721.5,2721.4,5.37]
[1740001984212,3.68276541,2721.5,2721.4,5.37]
[1740001988695,8.46033395,2721.5,2721.4,5.37]
[1740001993218,3.0,2721.4,2720.9,5.37]
[1740001993393,3.67535,2720.9,2720.7,5.37]
[1740001993729,3.67565,2720.6,2720.5,5.37]
[1740001993926,3.0,2720.5,2720.2,5.37]
[1740001994232,0.03670246,2720.4,2720.2,5.37]
[1740001994400,3.0,2720.3,2720.2,5.37]
[1740001994923,3.03666296,2720.3,2720.2,5.37]
[1740001995122,5.39577726,2720.3,2720.2,5.37]
[1740001995284,3.6764,2720.1,2719.6,5.37]
[1740001995488,3.03658444,2720.0,2719.6,5.37]
[1740001995720,6.71306444,2720.0,2719.6,5.37]
[1740001996729,3.03658444,2720.0,2719.6,5.37]
[1740001997031,6.71312444,2720.0,2719.6,5.37]
[1740001997789,3.0,2719.8,2719.6,5.37]
[1740001997986,7.32095,2719.8,2719.6,5.37]
[1740001998233,6.67687,2719.7,2719.3,5.37]
[1740001998432,3.67703,2719.6,2719.3,5.37]
[1740001998789,3.0,2719.5,2719.0,5.37]
[1740001999127,3.0,2719.2,2719.0,5.37]
[1740001999624,0.6442,2719.3,2719.0,5.37]
[1740001999926,3.0,2719.4,2719.0,5.37]
[1740002000124,4.344913,2719.5,2719.0,5.37]
[1740002000334,3.6775,2719.3,2719.0,5.37]
[1740002000632,3.6442,2719.2,2719.0,5.37]